[Event "Late-Titled-Tuesday-Blitz-April-16-2024"]
[Site "Chess.com"]
[Date "2024.04.16"]
[Round "9"]
[White "picturesquecheck"]
[Black "CURRUTACO59"]
[Result "1-0"]
[WhiteElo "2403"]
[BlackElo "2172"]
[TimeControl "180+1"]
[EndTime "15:43:53 PDT"]
[Termination "picturesquecheck won on time"]

1. g3 {[%clk 0:03:00.9]} 1... Nf6 {[%clk 0:02:57.2]} 2. Bg2 {[%clk 0:03:01.8]}
2... d5 {[%clk 0:02:55.2]} 3. Nf3 {[%clk 0:03:02.2]} 3... c6 {[%clk 0:02:54.6]}
4. O-O {[%clk 0:03:02.8]} 4... Bg4 {[%clk 0:02:54.5]} 5. d3 {[%clk 0:03:02.9]}
5... e6 {[%clk 0:02:54.6]} 6. c4 {[%clk 0:03:02.1]} 6... Bd6 {[%clk 0:02:53.7]}
7. Qc2 {[%clk 0:03:02.1]} 7... Nbd7 {[%clk 0:02:52.5]} 8. Nbd2 {[%clk
0:03:02.7]} 8... O-O {[%clk 0:02:51.6]} 9. a3 {[%clk 0:03:02.8]} 9... a5 {[%clk
0:02:50.2]} 10. b3 {[%clk 0:03:03]} 10... Re8 {[%clk 0:02:47.4]} 11. Bb2 {[%clk
0:03:02]} 11... Qe7 {[%clk 0:02:35.2]} 12. h3 {[%clk 0:02:58]} 12... Bh5 {[%clk
0:02:32.4]} 13. Rfe1 {[%clk 0:02:58.3]} 13... h6 {[%clk 0:02:27.5]} 14. e4
{[%clk 0:02:55.3]} 14... dxe4 {[%clk 0:02:17.2]} 15. dxe4 {[%clk 0:02:55.1]}
15... Bg6 {[%clk 0:02:16.4]} 16. Nh4 {[%clk 0:02:48.6]} 16... Bh7 {[%clk
0:02:15.9]} 17. Qc1 {[%clk 0:02:47]} 17... Be5 {[%clk 0:02:08.7]} 18. f4 {[%clk
0:02:39.9]} 18... Bxb2 {[%clk 0:02:05.5]} 19. Qxb2 {[%clk 0:02:40.8]} 19... Nc5
{[%clk 0:01:55.5]} 20. Qc3 {[%clk 0:02:34]} 20... Red8 {[%clk 0:01:53.3]} 21.
Re3 {[%clk 0:02:29.7]} 21... Qd7 {[%clk 0:01:34.1]} 22. Ra2 {[%clk 0:02:18.5]}
22... Qd4 {[%clk 0:01:02.8]} 23. e5 {[%clk 0:02:12.2]} 23... Qxc3 {[%clk
0:00:44.6]} 24. Rxc3 {[%clk 0:02:13.1]} 24... Nfe4 {[%clk 0:00:43.7]} 25. Nxe4
{[%clk 0:02:09.9]} 25... Nxe4 {[%clk 0:00:43.2]} 26. Bxe4 {[%clk 0:02:07.5]}
26... Bxe4 {[%clk 0:00:42.4]} 27. Kf2 {[%clk 0:02:07.9]} 27... Rd1 {[%clk
0:00:37.9]} 28. Ke3 {[%clk 0:01:59.5]} 28... Bh7 {[%clk 0:00:34.4]} 29. Rd2
{[%clk 0:01:55.4]} 29... Rh1 {[%clk 0:00:32]} 30. Kf3 {[%clk 0:01:49]} 30... Kf8
{[%clk 0:00:20.5]} 31. Rd7 {[%clk 0:01:46.5]} 31... Rb8 {[%clk 0:00:17.3]} 32.
a4 {[%clk 0:01:33.2]} 32... g5 {[%clk 0:00:16]} 33. Ng2 {[%clk 0:01:21.3]} 33...
Rxh3 {[%clk 0:00:15.2]} 34. fxg5 {[%clk 0:01:11.5]} 34... hxg5 {[%clk
0:00:14.3]} 35. Kg4 {[%clk 0:01:10.7]} 35... Rh2 {[%clk 0:00:09.8]} 36. Ne3
{[%clk 0:01:07.4]} 36... Re2 {[%clk 0:00:07.8]} 37. Kxg5 {[%clk 0:01:04.3]}
37... Bg6 {[%clk 0:00:07.5]} 38. Kf4 {[%clk 0:01:03.3]} 38... Ke8 {[%clk
0:00:07]} 39. Rd1 {[%clk 0:00:56.7]} 39... Rf2+ {[%clk 0:00:05.6]} 40. Kg5
{[%clk 0:00:56]} 40... Rd8 {[%clk 0:00:04]} 41. Rxd8+ {[%clk 0:00:54.8]} 41...
Kxd8 {[%clk 0:00:04.9]} 42. g4 {[%clk 0:00:53.5]} 42... Rb2 {[%clk 0:00:04.3]}
43. c5 {[%clk 0:00:48.1]} 43... Ke7 {[%clk 0:00:03.9]} 44. Nc4 {[%clk
0:00:47.8]} 44... Rg2 {[%clk 0:00:02.1]} 45. Nxa5 {[%clk 0:00:46.5]} 45... Bf5
{[%clk 0:00:02.2]} 46. Rc4 {[%clk 0:00:46.4]} 46... Bd3 {[%clk 0:00:01.7]} 47.
Rb4 {[%clk 0:00:45.8]} 1-0

[Event "Late-Titled-Tuesday-Blitz-April-16-2024"]
[Site "Chess.com"]
[Date "2024.04.16"]
[Round "9"]
[White "AradNazari"]
[Black "MrTattaglia"]
[Result "0-1"]
[WhiteElo "2730"]
[BlackElo "2965"]
[TimeControl "180+1"]
[EndTime "15:43:55 PDT"]
[Termination "MrTattaglia won on time"]

1. e4 {[%clk 0:03:00.9]} 1... e6 {[%clk 0:02:52.9]} 2. d4 {[%clk 0:03:00.4]}
2... d5 {[%clk 0:02:53.1]} 3. e5 {[%clk 0:03:01]} 3... c5 {[%clk 0:02:50.7]} 4.
c3 {[%clk 0:03:01.7]} 4... Nc6 {[%clk 0:02:50.1]} 5. Nf3 {[%clk 0:03:02.3]} 5...
Qb6 {[%clk 0:02:35.4]} 6. a3 {[%clk 0:02:51]} 6... f6 {[%clk 0:02:35]} 7. Bd3
{[%clk 0:02:29.4]} 7... fxe5 {[%clk 0:02:34.8]} 8. dxe5 {[%clk 0:02:27.7]} 8...
Nh6 {[%clk 0:02:35.3]} 9. O-O {[%clk 0:02:21.3]} 9... Be7 {[%clk 0:02:27.6]} 10.
b4 {[%clk 0:02:14.2]} 10... c4 {[%clk 0:02:25.8]} 11. Bc2 {[%clk 0:02:13.5]}
11... Bd7 {[%clk 0:02:25.5]} 12. a4 {[%clk 0:02:07.3]} 12... Qc7 {[%clk
0:02:20.9]} 13. Qe2 {[%clk 0:01:57.1]} 13... O-O-O {[%clk 0:02:12.1]} 14. Na3
{[%clk 0:01:35.8]} 14... Rdf8 {[%clk 0:01:56.3]} 15. Nb5 {[%clk 0:01:25.7]}
15... Qb8 {[%clk 0:01:56.3]} 16. Nbd4 {[%clk 0:01:08.5]} 16... Nxd4 {[%clk
0:01:33.8]} 17. Nxd4 {[%clk 0:01:09.4]} 17... g5 {[%clk 0:01:32.6]} 18. a5
{[%clk 0:00:42.3]} 18... Nf7 {[%clk 0:01:27.6]} 19. Re1 {[%clk 0:00:41.6]} 19...
g4 {[%clk 0:01:20]} 20. Qxg4 {[%clk 0:00:27.8]} 20... Nxe5 {[%clk 0:01:17.2]}
21. Qe2 {[%clk 0:00:27.6]} 21... Bd6 {[%clk 0:01:11.3]} 22. f4 {[%clk
0:00:23.8]} 22... Nd3 {[%clk 0:00:56.7]} 23. Bxd3 {[%clk 0:00:23.2]} 23... cxd3
{[%clk 0:00:57.6]} 24. Qxd3 {[%clk 0:00:23.9]} 24... Bxf4 {[%clk 0:00:57]} 25.
g3 {[%clk 0:00:18.2]} 25... Be5 {[%clk 0:00:48.2]} 26. Bh6 {[%clk 0:00:14.4]}
26... Rfg8 {[%clk 0:00:39.8]} 27. Re3 {[%clk 0:00:06.7]} 27... Rg6 {[%clk
0:00:36.3]} 28. Qd2 {[%clk 0:00:04.9]} 28... Rhg8 {[%clk 0:00:29]} 29. Ne2
{[%clk 0:00:04.2]} 29... Rxh6 {[%clk 0:00:26.3]} 30. Rc1 {[%clk 0:00:03.7]}
30... Bc7 {[%clk 0:00:17.7]} 31. c4 {[%clk 0:00:04]} 31... d4 {[%clk 0:00:16.8]}
32. Nxd4 {[%clk 0:00:03.4]} 32... Bf4 {[%clk 0:00:15.7]} 33. Nxe6 {[%clk
0:00:02.4]} 33... Rxe6 {[%clk 0:00:13.3]} 0-1

[Event "Late-Titled-Tuesday-Blitz-April-16-2024"]
[Site "Chess.com"]
[Date "2024.04.16"]
[Round "9"]
[White "Nf3c5"]
[Black "steepedgames"]
[Result "0-1"]
[WhiteElo "2638"]
[BlackElo "2522"]
[TimeControl "180+1"]
[EndTime "15:43:56 PDT"]
[Termination "steepedgames won on time"]

1. e4 {[%clk 0:02:57.7]} 1... e6 {[%clk 0:02:50.8]} 2. d4 {[%clk 0:02:54.9]}
2... d5 {[%clk 0:02:51.4]} 3. Nd2 {[%clk 0:02:54.7]} 3... Nf6 {[%clk 0:02:50.3]}
4. e5 {[%clk 0:02:53.5]} 4... Nfd7 {[%clk 0:02:50.9]} 5. Bd3 {[%clk 0:02:53.2]}
5... c5 {[%clk 0:02:51.4]} 6. c3 {[%clk 0:02:52.9]} 6... b6 {[%clk 0:02:49.6]}
7. Ngf3 {[%clk 0:02:34.4]} 7... Ba6 {[%clk 0:02:49]} 8. c4 {[%clk 0:02:34.4]}
8... Nc6 {[%clk 0:02:46.2]} 9. a3 {[%clk 0:02:23]} 9... Nxd4 {[%clk 0:02:42.4]}
10. O-O {[%clk 0:02:18.4]} 10... Nxf3+ {[%clk 0:02:34.1]} 11. Nxf3 {[%clk
0:02:15.9]} 11... Bxc4 {[%clk 0:02:27.9]} 12. Bxc4 {[%clk 0:02:15.6]} 12... dxc4
{[%clk 0:02:28.8]} 13. Qa4 {[%clk 0:02:15.3]} 13... Qc7 {[%clk 0:02:22.9]} 14.
Bf4 {[%clk 0:01:52.2]} 14... a6 {[%clk 0:02:20.9]} 15. Qxc4 {[%clk 0:01:47.1]}
15... Be7 {[%clk 0:02:12.3]} 16. Rad1 {[%clk 0:01:45.6]} 16... O-O {[%clk
0:02:08.9]} 17. h4 {[%clk 0:01:46]} 17... b5 {[%clk 0:02:07]} 18. Qe4 {[%clk
0:01:43.6]} 18... h6 {[%clk 0:02:05.7]} 19. g4 {[%clk 0:01:40.2]} 19... Nb6
{[%clk 0:01:58.6]} 20. h5 {[%clk 0:01:31.9]} 20... Rad8 {[%clk 0:01:46]} 21. g5
{[%clk 0:01:14.7]} 21... hxg5 {[%clk 0:01:43.4]} 22. Nxg5 {[%clk 0:01:09]} 22...
Bxg5 {[%clk 0:01:41.1]} 23. Bxg5 {[%clk 0:01:09.9]} 23... Rxd1 {[%clk 0:01:36]}
24. Rxd1 {[%clk 0:01:10.8]} 24... Nc4 {[%clk 0:01:30.7]} 25. Re1 {[%clk
0:01:00.3]} 25... Kh8 {[%clk 0:01:17]} 26. h6 {[%clk 0:00:57.2]} 26... f5 {[%clk
0:01:06.7]} 27. hxg7+ {[%clk 0:00:29.1]} 27... Qxg7 {[%clk 0:01:05.8]} 28. Qh4+
{[%clk 0:00:29.1]} 28... Kg8 {[%clk 0:01:01.2]} 29. Kh2 {[%clk 0:00:21]} 29...
Nxe5 {[%clk 0:00:51.8]} 30. Qf4 {[%clk 0:00:14.5]} 30... Ng4+ {[%clk 0:00:48.6]}
31. Kg3 {[%clk 0:00:14]} 31... e5 {[%clk 0:00:48.9]} 32. Qd2 {[%clk 0:00:13]}
32... Nf6 {[%clk 0:00:37.5]} 33. Kf3 {[%clk 0:00:09.9]} 33... Ne4 {[%clk
0:00:34.5]} 34. Qd5+ {[%clk 0:00:09.2]} 34... Qf7 {[%clk 0:00:34.6]} 35. Qxf7+
{[%clk 0:00:01.6]} 35... Kxf7 {[%clk 0:00:35.5]} 36. Be3 {[%clk 0:00:01.8]}
36... Rg8 {[%clk 0:00:32.3]} 37. Rh1 {[%clk 0:00:02.7]} 37... Ke6 {[%clk
0:00:28.3]} 38. Rh6+ {[%clk 0:00:02.7]} 38... Kd5 {[%clk 0:00:28.9]} 39. Rh7
{[%clk 0:00:03.2]} 39... f4 {[%clk 0:00:27.8]} 40. Bc1 {[%clk 0:00:01.1]} 40...
Ng5+ {[%clk 0:00:23.8]} 0-1

[Event "Late-Titled-Tuesday-Blitz-April-16-2024"]
[Site "Chess.com"]
[Date "2024.04.16"]
[Round "9"]
[White "Sanan_Sjugirov"]
[Black "temus_galaktionov"]
[Result "0-1"]
[WhiteElo "2997"]
[BlackElo "2890"]
[TimeControl "180+1"]
[EndTime "15:43:58 PDT"]
[Termination "temus_galaktionov won on time"]

1. d4 {[%clk 0:03:00.9]} 1... c6 {[%clk 0:03:00.9]} 2. c4 {[%clk 0:03:00]} 2...
g6 {[%clk 0:02:57.3]} 3. e4 {[%clk 0:02:58.3]} 3... d6 {[%clk 0:02:53.1]} 4. Nc3
{[%clk 0:02:58.1]} 4... Bg7 {[%clk 0:02:51.3]} 5. Be3 {[%clk 0:02:52.6]} 5...
Nd7 {[%clk 0:02:50.6]} 6. f4 {[%clk 0:02:37.1]} 6... e5 {[%clk 0:02:49.8]} 7.
Nf3 {[%clk 0:02:35.4]} 7... Ngf6 {[%clk 0:02:48.8]} 8. fxe5 {[%clk 0:02:24.5]}
8... dxe5 {[%clk 0:02:49.7]} 9. d5 {[%clk 0:02:24.9]} 9... O-O {[%clk
0:02:49.3]} 10. Be2 {[%clk 0:02:22.2]} 10... Ng4 {[%clk 0:02:49.2]} 11. Bg1
{[%clk 0:02:13]} 11... f5 {[%clk 0:02:49.1]} 12. h3 {[%clk 0:02:05.4]} 12...
Ngf6 {[%clk 0:02:49.1]} 13. exf5 {[%clk 0:01:21.1]} 13... gxf5 {[%clk 0:02:50]}
14. Bf2 {[%clk 0:01:20.5]} 14... cxd5 {[%clk 0:02:24.1]} 15. cxd5 {[%clk
0:01:20.4]} 15... e4 {[%clk 0:02:06.9]} 16. Ng5 {[%clk 0:01:20.5]} 16... Nb6
{[%clk 0:01:57.9]} 17. Qb3 {[%clk 0:01:08.6]} 17... Kh8 {[%clk 0:01:51.3]} 18.
Ne6 {[%clk 0:01:00.1]} 18... Bxe6 {[%clk 0:01:50.2]} 19. dxe6 {[%clk 0:01:01]}
19... f4 {[%clk 0:01:36.5]} 20. Bc5 {[%clk 0:00:55.9]} 20... Re8 {[%clk
0:01:33.9]} 21. O-O {[%clk 0:00:36.2]} 21... Qc7 {[%clk 0:01:31.9]} 22. Bf2
{[%clk 0:00:31.5]} 22... e3 {[%clk 0:01:20]} 23. Bh4 {[%clk 0:00:30.9]} 23...
Qe5 {[%clk 0:01:19.9]} 24. Bxf6 {[%clk 0:00:22.2]} 24... Bxf6 {[%clk 0:01:20.8]}
25. Bg4 {[%clk 0:00:22]} 25... h5 {[%clk 0:01:18.8]} 26. Bf3 {[%clk 0:00:21.3]}
26... Rxe6 {[%clk 0:01:18.4]} 27. Rad1 {[%clk 0:00:19.6]} 27... Rae8 {[%clk
0:01:13.7]} 28. Ne2 {[%clk 0:00:19.6]} 28... R6e7 {[%clk 0:01:09]} 29. Qd3
{[%clk 0:00:17.4]} 29... Rg8 {[%clk 0:01:03]} 30. Kh1 {[%clk 0:00:16.4]} 30...
Na4 {[%clk 0:01:00.1]} 31. Qb3 {[%clk 0:00:13.1]} 31... Nb6 {[%clk 0:00:52.1]}
32. Qb4 {[%clk 0:00:13]} 32... Bg5 {[%clk 0:00:47.4]} 33. a4 {[%clk 0:00:08.2]}
33... Rc7 {[%clk 0:00:25.3]} 34. a5 {[%clk 0:00:07.8]} 34... Nc4 {[%clk
0:00:24.8]} 35. Rd5 {[%clk 0:00:07.4]} 35... Qxb2 {[%clk 0:00:20.5]} 36. Qa4
{[%clk 0:00:03.8]} 36... Nd2 {[%clk 0:00:19.4]} 37. Bxh5 {[%clk 0:00:02.4]}
37... Nxf1 {[%clk 0:00:19.1]} 0-1

[Event "Late-Titled-Tuesday-Blitz-April-16-2024"]
[Site "Chess.com"]
[Date "2024.04.16"]
[Round "9"]
[White "Mikhail_Golubev"]
[Black "cthulhuuu"]
[Result "1-0"]
[WhiteElo "2591"]
[BlackElo "2461"]
[TimeControl "180+1"]
[EndTime "15:43:58 PDT"]
[Termination "Mikhail_Golubev won by resignation"]

1. e4 {[%clk 0:03:00.9]} 1... d6 {[%clk 0:02:59.1]} 2. d4 {[%clk 0:03:00.1]}
2... Nf6 {[%clk 0:02:59.8]} 3. Nc3 {[%clk 0:02:59.5]} 3... c6 {[%clk 0:03:00.2]}
4. f4 {[%clk 0:02:57.7]} 4... Qb6 {[%clk 0:03:00.2]} 5. Be2 {[%clk 0:02:48.5]}
5... e5 {[%clk 0:02:58.3]} 6. Nf3 {[%clk 0:02:40.1]} 6... Bg4 {[%clk 0:02:54.5]}
7. fxe5 {[%clk 0:02:31.2]} 7... Bxf3 {[%clk 0:02:54]} 8. exf6 {[%clk 0:02:27.6]}
8... Bxe2 {[%clk 0:02:53.8]} 9. Nxe2 {[%clk 0:02:26.5]} 9... gxf6 {[%clk
0:02:52.7]} 10. O-O {[%clk 0:02:23.6]} 10... Nd7 {[%clk 0:02:52.1]} 11. Kh1
{[%clk 0:02:17.7]} 11... O-O-O {[%clk 0:02:48.4]} 12. Ng3 {[%clk 0:02:10.1]}
12... Rg8 {[%clk 0:02:40.1]} 13. a4 {[%clk 0:02:06.7]} 13... d5 {[%clk
0:02:39.2]} 14. a5 {[%clk 0:01:57]} 14... Qa6 {[%clk 0:02:37]} 15. exd5 {[%clk
0:01:57]} 15... cxd5 {[%clk 0:02:32.2]} 16. Nf5 {[%clk 0:01:50.7]} 16... Qe6
{[%clk 0:02:04.4]} 17. Rf3 {[%clk 0:01:30.1]} 17... Nb8 {[%clk 0:01:47.1]} 18.
Qf1 {[%clk 0:01:20.5]} 18... a6 {[%clk 0:01:32]} 19. Bf4 {[%clk 0:01:01.4]}
19... Nc6 {[%clk 0:01:21.8]} 20. Bg3 {[%clk 0:00:25.6]} 20... Rg4 {[%clk
0:01:21.5]} 21. c3 {[%clk 0:00:24.4]} 21... Re8 {[%clk 0:01:14.5]} 22. b4 {[%clk
0:00:22.5]} 22... Qe2 {[%clk 0:01:03.2]} 23. Qb1 {[%clk 0:00:21.4]} 23... Na7
{[%clk 0:00:57.3]} 24. Qb3 {[%clk 0:00:17.4]} 24... Qe4 {[%clk 0:00:21.9]} 25.
Rff1 {[%clk 0:00:13.9]} 25... Kd7 {[%clk 0:00:04.1]} 26. Rae1 {[%clk 0:00:08.8]}
26... Qxf5 {[%clk 0:00:02.3]} 27. Rxf5 {[%clk 0:00:06.8]} 27... Rxe1+ {[%clk
0:00:02.3]} 28. Bxe1 {[%clk 0:00:06.2]} 28... Ke6 {[%clk 0:00:02.7]} 29. Qxd5+
{[%clk 0:00:05.5]} 29... Ke7 {[%clk 0:00:03.1]} 30. Qxb7+ {[%clk 0:00:05.4]} 1-0

[Event "Late-Titled-Tuesday-Blitz-April-16-2024"]
[Site "Chess.com"]
[Date "2024.04.16"]
[Round "9"]
[White "SilverCityIndigo"]
[Black "divudis17"]
[Result "1-0"]
[WhiteElo "2445"]
[BlackElo "2560"]
[TimeControl "180+1"]
[EndTime "15:44:00 PDT"]
[Termination "SilverCityIndigo won on time"]

1. d4 {[%clk 0:02:58]} 1... Nf6 {[%clk 0:02:53]} 2. c4 {[%clk 0:02:57.4]} 2...
g6 {[%clk 0:02:50.8]} 3. Nf3 {[%clk 0:02:56.3]} 3... Bg7 {[%clk 0:02:50.9]} 4.
b3 {[%clk 0:02:56.6]} 4... O-O {[%clk 0:02:46.7]} 5. Bb2 {[%clk 0:02:56.5]} 5...
c6 {[%clk 0:02:46.7]} 6. Nbd2 {[%clk 0:02:56]} 6... d5 {[%clk 0:02:47.1]} 7. e3
{[%clk 0:02:55.8]} 7... Bf5 {[%clk 0:02:28.4]} 8. h3 {[%clk 0:02:55.6]} 8...
Nbd7 {[%clk 0:02:24.6]} 9. g4 {[%clk 0:02:55.5]} 9... Be4 {[%clk 0:02:23.2]} 10.
g5 {[%clk 0:02:53.1]} 10... Bxf3 {[%clk 0:02:13.1]} 11. Qxf3 {[%clk 0:02:50.1]}
11... Ne4 {[%clk 0:02:13.7]} 12. Nxe4 {[%clk 0:02:48.3]} 12... dxe4 {[%clk
0:02:14.6]} 13. Qxe4 {[%clk 0:02:48.1]} 13... Qa5+ {[%clk 0:02:15]} 14. Ke2
{[%clk 0:02:38.4]} 14... e5 {[%clk 0:02:14.8]} 15. Qg4 {[%clk 0:02:24.1]} 15...
exd4 {[%clk 0:01:59.7]} 16. Bxd4 {[%clk 0:01:55.7]} 16... Bxd4 {[%clk
0:01:49.6]} 17. exd4 {[%clk 0:01:55.1]} 17... Rfe8+ {[%clk 0:01:41.5]} 18. Kf3
{[%clk 0:01:52.3]} 18... Qc3+ {[%clk 0:01:40.2]} 19. Kg2 {[%clk 0:01:39.3]}
19... Ne5 {[%clk 0:01:15.6]} 20. Qd1 {[%clk 0:01:34.1]} 20... Rad8 {[%clk
0:01:15]} 21. d5 {[%clk 0:01:16.8]} 21... Nf3 {[%clk 0:00:56.7]} 22. Qxf3 {[%clk
0:00:54.6]} 22... Qxa1 {[%clk 0:00:55.5]} 23. dxc6 {[%clk 0:00:52.5]} 23... bxc6
{[%clk 0:00:54.9]} 24. c5 {[%clk 0:00:32.2]} 24... Qe5 {[%clk 0:00:45.3]} 25. h4
{[%clk 0:00:25.3]} 25... Qxc5 {[%clk 0:00:38.8]} 26. Bc4 {[%clk 0:00:25.3]}
26... Re7 {[%clk 0:00:37.9]} 27. Re1 {[%clk 0:00:24.6]} 27... Rde8 {[%clk
0:00:31.7]} 28. Bxf7+ {[%clk 0:00:24.7]} 28... Rxf7 {[%clk 0:00:23.4]} 29. Rxe8+
{[%clk 0:00:24.9]} 29... Kg7 {[%clk 0:00:24.1]} 30. Qe2 {[%clk 0:00:18.2]} 30...
Qd5+ {[%clk 0:00:14.6]} 31. f3 {[%clk 0:00:18.7]} 31... Rd7 {[%clk 0:00:10]} 32.
Qb2+ {[%clk 0:00:17.3]} 32... Kf7 {[%clk 0:00:09.3]} 33. Re2 {[%clk 0:00:13.6]}
33... Qf5 {[%clk 0:00:06.2]} 34. Qh8 {[%clk 0:00:12.5]} 34... Rd3 {[%clk
0:00:02.7]} 35. Qe8+ {[%clk 0:00:11.6]} 35... Kg7 {[%clk 0:00:03.1]} 36. Re7+
{[%clk 0:00:11.8]} 1-0

[Event "Late-Titled-Tuesday-Blitz-April-16-2024"]
[Site "Chess.com"]
[Date "2024.04.16"]
[Round "9"]
[White "ameetghasi100"]
[Black "h4parah5"]
[Result "0-1"]
[WhiteElo "2794"]
[BlackElo "3030"]
[TimeControl "180+1"]
[EndTime "15:44:04 PDT"]
[Termination "h4parah5 won by checkmate"]

1. Nf3 {[%clk 0:03:00.8]} 1... c5 {[%clk 0:02:59.6]} 2. g3 {[%clk 0:03:00.8]}
2... Nc6 {[%clk 0:02:59.2]} 3. Bg2 {[%clk 0:03:01.7]} 3... g6 {[%clk 0:02:59.4]}
4. O-O {[%clk 0:03:02.6]} 4... Bg7 {[%clk 0:02:59.8]} 5. d3 {[%clk 0:03:03.2]}
5... d6 {[%clk 0:02:59.2]} 6. Nc3 {[%clk 0:03:01.4]} 6... e6 {[%clk 0:02:57.1]}
7. a3 {[%clk 0:03:01.3]} 7... Nge7 {[%clk 0:02:56.6]} 8. Rb1 {[%clk 0:03:01.8]}
8... O-O {[%clk 0:02:55.9]} 9. Bd2 {[%clk 0:03:02.4]} 9... b6 {[%clk 0:02:51.5]}
10. b4 {[%clk 0:03:02.1]} 10... Bb7 {[%clk 0:02:50.4]} 11. h4 {[%clk 0:03:01.3]}
11... h6 {[%clk 0:02:49.3]} 12. Qc1 {[%clk 0:02:53.3]} 12... Kh7 {[%clk
0:02:43]} 13. bxc5 {[%clk 0:02:50]} 13... dxc5 {[%clk 0:02:41.3]} 14. Ne4 {[%clk
0:02:50.1]} 14... Rb8 {[%clk 0:02:30.2]} 15. c4 {[%clk 0:02:21.8]} 15... Nf5
{[%clk 0:02:15.7]} 16. Re1 {[%clk 0:02:00.3]} 16... Qe7 {[%clk 0:02:05.7]} 17.
Bc3 {[%clk 0:01:43.1]} 17... e5 {[%clk 0:01:22.8]} 18. a4 {[%clk 0:01:18.9]}
18... Nfd4 {[%clk 0:01:12.9]} 19. a5 {[%clk 0:01:02.4]} 19... Ba8 {[%clk
0:00:57.1]} 20. axb6 {[%clk 0:01:01]} 20... axb6 {[%clk 0:00:58]} 21. Ba1 {[%clk
0:00:43.1]} 21... Nxf3+ {[%clk 0:00:52.7]} 22. exf3 {[%clk 0:00:29.9]} 22... Nb4
{[%clk 0:00:52.4]} 23. Rb3 {[%clk 0:00:10.8]} 23... Rbd8 {[%clk 0:00:44.4]} 24.
Qb1 {[%clk 0:00:10.7]} 24... Qd7 {[%clk 0:00:42.2]} 25. Rd1 {[%clk 0:00:09.1]}
25... Rfe8 {[%clk 0:00:39.8]} 26. Bc3 {[%clk 0:00:07.9]} 26... f5 {[%clk
0:00:35.8]} 27. Nd2 {[%clk 0:00:07]} 27... Qxd3 {[%clk 0:00:24]} 28. Bxb4 {[%clk
0:00:03.4]} 28... Qxb1 {[%clk 0:00:23.9]} 29. Rdxb1 {[%clk 0:00:02.1]} 29...
cxb4 {[%clk 0:00:23.6]} 30. Nf1 {[%clk 0:00:03]} 30... Bf8 {[%clk 0:00:23.1]}
31. Ne3 {[%clk 0:00:03.6]} 31... Rd2 {[%clk 0:00:22.2]} 32. h5 {[%clk
0:00:03.8]} 32... Bc5 {[%clk 0:00:21.2]} 33. hxg6+ {[%clk 0:00:04.7]} 33... Kxg6
{[%clk 0:00:21.7]} 34. Bh3 {[%clk 0:00:05.4]} 34... f4 {[%clk 0:00:21.1]} 35.
gxf4 {[%clk 0:00:05.4]} 35... exf4 {[%clk 0:00:22]} 36. Nd5 {[%clk 0:00:06]}
36... Bxd5 {[%clk 0:00:21.4]} 37. cxd5 {[%clk 0:00:06.9]} 37... Ree2 {[%clk
0:00:21.2]} 38. Kh1 {[%clk 0:00:04.6]} 38... Rxf2 {[%clk 0:00:21.4]} 39. Rg1+
{[%clk 0:00:04.3]} 39... Kf6 {[%clk 0:00:21.6]} 40. Rg2 {[%clk 0:00:05.2]} 40...
Rf1+ {[%clk 0:00:20.9]} 41. Kh2 {[%clk 0:00:05.4]} 41... Bg1+ {[%clk 0:00:21.2]}
42. Kh1 {[%clk 0:00:06]} 42... Bf2+ {[%clk 0:00:21.6]} 43. Kh2 {[%clk
0:00:05.6]} 43... Bg3# {[%clk 0:00:21.9]} 0-1

[Event "Late-Titled-Tuesday-Blitz-April-16-2024"]
[Site "Chess.com"]
[Date "2024.04.16"]
[Round "9"]
[White "micke12a"]
[Black "JiangoFett"]
[Result "1-0"]
[WhiteElo "2449"]
[BlackElo "2525"]
[TimeControl "180+1"]
[EndTime "15:44:06 PDT"]
[Termination "micke12a won by checkmate"]

1. d4 {[%clk 0:03:00.9]} 1... Nf6 {[%clk 0:02:58.6]} 2. Bf4 {[%clk 0:03:00.4]}
2... e6 {[%clk 0:02:58.3]} 3. e3 {[%clk 0:03:00.4]} 3... b6 {[%clk 0:02:58.8]}
4. c4 {[%clk 0:02:59.8]} 4... Bb7 {[%clk 0:02:58.8]} 5. Nf3 {[%clk 0:02:59.6]}
5... g6 {[%clk 0:02:58.6]} 6. Nc3 {[%clk 0:02:59.5]} 6... Bg7 {[%clk 0:02:58.9]}
7. h3 {[%clk 0:02:59]} 7... O-O {[%clk 0:02:58.8]} 8. Be2 {[%clk 0:02:59.6]}
8... d6 {[%clk 0:02:59]} 9. O-O {[%clk 0:03:00]} 9... Nbd7 {[%clk 0:02:56.1]}
10. Rc1 {[%clk 0:03:00.2]} 10... a6 {[%clk 0:02:54.5]} 11. Bh2 {[%clk
0:03:00.9]} 11... Qe7 {[%clk 0:02:54]} 12. b4 {[%clk 0:03:01.6]} 12... e5 {[%clk
0:02:42.6]} 13. Qb3 {[%clk 0:02:58.8]} 13... exd4 {[%clk 0:02:37.9]} 14. exd4
{[%clk 0:02:56.7]} 14... Nh5 {[%clk 0:02:20.5]} 15. Rfe1 {[%clk 0:02:55.5]}
15... Qd8 {[%clk 0:02:10.1]} 16. d5 {[%clk 0:02:49.6]} 16... Bh6 {[%clk
0:02:07.8]} 17. Rcd1 {[%clk 0:02:46]} 17... Re8 {[%clk 0:02:03.2]} 18. Nd4
{[%clk 0:02:44.4]} 18... Qf6 {[%clk 0:01:54.1]} 19. Bg4 {[%clk 0:02:14.8]} 19...
Rxe1+ {[%clk 0:01:49.1]} 20. Rxe1 {[%clk 0:02:14.3]} 20... Qxd4 {[%clk 0:01:47]}
21. Bxd7 {[%clk 0:02:12.5]} 21... Bd2 {[%clk 0:01:45.4]} 22. Ne2 {[%clk
0:01:47.7]} 22... Qe4 {[%clk 0:01:36.9]} 23. Rd1 {[%clk 0:01:39.9]} 23... Qxe2
{[%clk 0:01:34.6]} 24. Bg4 {[%clk 0:01:37]} 24... Qe7 {[%clk 0:01:25.2]} 25.
Bxh5 {[%clk 0:01:18.2]} 25... gxh5 {[%clk 0:01:25.2]} 26. Qf3 {[%clk 0:01:18.9]}
26... Re8 {[%clk 0:01:19.5]} 27. Bg3 {[%clk 0:01:16]} 27... h4 {[%clk 0:01:14]}
28. Rxd2 {[%clk 0:00:48.8]} 28... hxg3 {[%clk 0:01:11.1]} 29. Qxg3+ {[%clk
0:00:47.8]} 29... Kh8 {[%clk 0:01:10.3]} 30. Rd4 {[%clk 0:00:45.2]} 30... Rg8
{[%clk 0:01:07.4]} 31. Qf3 {[%clk 0:00:37]} 31... Qe1+ {[%clk 0:01:06.9]} 32.
Kh2 {[%clk 0:00:37]} 32... Qe5+ {[%clk 0:01:07.4]} 33. Rf4 {[%clk 0:00:37.5]}
33... Rg7 {[%clk 0:00:58.5]} 34. g3 {[%clk 0:00:36.6]} 34... b5 {[%clk
0:00:25.8]} 35. Re4 {[%clk 0:00:34.1]} 35... Qg5 {[%clk 0:00:20.4]} 36. Re8+
{[%clk 0:00:26]} 36... Rg8 {[%clk 0:00:21]} 37. Qxf7 {[%clk 0:00:26.2]} 37...
bxc4 {[%clk 0:00:16.1]} 38. Rxg8+ {[%clk 0:00:16.7]} 38... Qxg8 {[%clk 0:00:17]}
39. Qf6+ {[%clk 0:00:17.3]} 39... Qg7 {[%clk 0:00:17.4]} 40. Qd8+ {[%clk
0:00:17.7]} 40... Qg8 {[%clk 0:00:18]} 41. Qxc7 {[%clk 0:00:17.9]} 41... Qxd5
{[%clk 0:00:16.9]} 42. Qd8+ {[%clk 0:00:16.6]} 42... Kg7 {[%clk 0:00:17.5]} 43.
Qe7+ {[%clk 0:00:16.8]} 43... Kg6 {[%clk 0:00:17.8]} 44. Qe8+ {[%clk 0:00:16.6]}
44... Kf6 {[%clk 0:00:17.1]} 45. Qd8+ {[%clk 0:00:14]} 45... Ke5 {[%clk
0:00:17]} 46. Qg5+ {[%clk 0:00:13.3]} 46... Kd4 {[%clk 0:00:17.5]} 47. Qe3#
{[%clk 0:00:13.5]} 1-0